bitfinex-derivatives/quotes_BTCF0:USTF0_20250609
["timestamp","ask_amount","ask_price","bid_price","bid_amount"]
[1749473620743,0.57396049,107710.0,107700.0,1.29921493]
[1749473620938,0.57396049,107710.0,107700.0,1.46795393]
[1749473621536,0.57396049,107710.0,107700.0,1.29750137]
[1749473621740,0.57396049,107710.0,107700.0,1.36465393]
[1749473622445,0.57396049,107710.0,107700.0,1.41495393]
[1749473622838,0.75955379,107710.0,107700.0,1.31355393]
[1749473623039,0.80815379,107710.0,107700.0,1.31355393]
[1749473623644,0.80815379,107710.0,107700.0,1.36565393]
[1749473624741,0.80815379,107710.0,107700.0,1.41595393]
[1749473624935,0.75955379,107710.0,107700.0,1.46425393]
[1749473628645,0.52236049,107710.0,107700.0,1.46425393]
[1749473628944,0.65985379,107710.0,107700.0,1.46425393]
[1749473629145,0.47426049,107710.0,107700.0,1.17496237]
[1749473629446,0.04850049,107710.0,107700.0,1.17496237]
[1749473629642,0.47402049,107710.0,107700.0,1.17496237]
[1749473630247,0.65961379,107710.0,107700.0,1.17496237]
[1749473631446,0.47402049,107710.0,107700.0,1.17496237]
[1749473631640,0.47402049,107710.0,107700.0,1.29551493]
[1749473633145,0.04850049,107710.0,107700.0,1.29551493]
[1749473633352,0.53112,107710.0,107700.0,1.29551493]
[1749473634846,0.57362423,107710.0,107700.0,1.29551493]
[1749473636652,0.75921753,107710.0,107700.0,1.29551493]
[1749473636956,0.57362423,107710.0,107700.0,1.17496237]
[1749473638244,0.56762423,107710.0,107700.0,1.58480649]
[1749473638449,0.55252508,107710.0,107700.0,1.46425393]
[1749473638650,0.55252508,107710.0,107700.0,1.58480649]
[1749473638848,0.55252508,107710.0,107700.0,1.29551493]
[1749473639249,0.55252508,107710.0,107700.0,1.67082969]
[1749473640249,0.73811838,107710.0,107700.0,1.67082969]
[1749473640440,0.56754423,107710.0,107700.0,1.67082969]
[1749473640642,0.75313753,107710.0,107700.0,1.67082969]
[1749473641048,0.56754423,107710.0,107700.0,1.67082969]
[1749473641350,0.56754423,107710.0,107700.0,1.29551493]
[1749473645558,0.56754423,107710.0,107700.0,1.58430519]
[1749473645855,0.75297753,107710.0,107700.0,1.58430519]
[1749473646248,0.75297753,107710.0,107700.0,1.29551493]
[1749473648850,0.56738423,107710.0,107700.0,1.29551493]
[1749473650454,0.75297753,107710.0,107700.0,1.29551493]
[1749473650860,0.56738423,107710.0,107700.0,1.29551493]
[1749473651059,0.56738423,107710.0,107700.0,1.58430519]
[1749473651752,0.75297743,107710.0,107700.0,1.58430519]
[1749473652052,0.73187823,107710.0,107700.0,1.46375263]
[1749473652254,0.85243079,107710.0,107700.0,1.46375263]
[1749473653958,0.73187823,107710.0,107700.0,1.46375263]
[1749473654561,0.73187823,107710.0,107700.0,1.17496237]
[1749473655253,0.30651823,107710.0,107700.0,1.17496237]
[1749473655459,0.54620503,107710.0,107700.0,1.17496237]
[1749473655762,0.73179833,107710.0,107700.0,1.29551493]
[1749473656158,0.73179833,107710.0,107700.0,1.24721493]
[1749473656459,0.83509833,107710.0,107700.0,1.24721493]
[1749473656760,0.83509833,107710.0,107700.0,1.00610981]
[1749473656963,0.28494484,107720.0,107710.0,0.1855933]
[1749473657158,0.52464884,107720.0,107710.0,0.81744586]
[1749473657549,0.52464884,107720.0,107710.0,0.91028344]
[1749473657955,0.52504884,107720.0,107710.0,0.91028344]
[1749473658558,0.52804884,107720.0,107710.0,0.91028344]
[1749473658760,0.00364884,107720.0,107710.0,0.91028344]
[1749473658956,0.52800884,107720.0,107710.0,0.91028344]
[1749473659160,0.53100884,107720.0,107710.0,0.91028344]
[1749473659363,0.53100884,107720.0,107710.0,0.89687201]
[1749473659560,0.5784216,107720.0,107710.0,0.89687201]
[1749473659763,0.7639977,107720.0,107710.0,0.89687201]
[1749473660767,0.7639977,107720.0,107710.0,1.18566227]
[1749473662568,0.5784216,107720.0,107710.0,1.18566227]
[1749473663862,0.7639976,107720.0,107710.0,1.18566227]
[1749473666064,0.7639976,107720.0,107710.0,1.07852114]
[1749473666265,0.7639976,107720.0,107710.0,1.18566227]
[1749473667466,0.5784216,107720.0,107710.0,1.18566227]
[1749473668371,0.0540616,107720.0,107710.0,1.18566227]
[1749473668672,0.5783816,107720.0,107710.0,1.18566227]
[1749473670571,0.5783416,107720.0,107710.0,1.18566227]
[1749473671574,0.1531816,107720.0,107710.0,1.18566227]
[1749473671772,0.1531816,107720.0,107710.0,1.32500608]
[1749473671773,0.5783416,107720.0,107710.0,1.32500608]
[1749473674568,0.7639176,107720.0,107710.0,1.32500608]
[1749473675370,0.5783416,107720.0,107710.0,1.32500608]
[1749473675757,0.1531816,107720.0,107710.0,1.32500608]
[1749473675930,0.5783016,107720.0,107710.0,1.32500608]
[1749473677980,0.0540616,107720.0,107710.0,1.32500608]
[1749473678168,0.185542,107740.0,107710.0,1.32500608]
[1749473678372,0.278314,107740.0,107730.0,0.29269993]
[1749473678572,0.802434,107740.0,107730.0,0.1855588]
[1749473678774,0.802434,107740.0,107730.0,0.2857588]
[1749473678775,0.802834,107740.0,107730.0,0.2857588]
[1749473678975,0.802834,107740.0,107730.0,0.37859638]
[1749473679171,0.80292534,107740.0,107730.0,0.37859638]
[1749473679381,0.92643076,107740.0,107730.0,0.4991018]
[1749473679578,0.33441934,107740.0,107730.0,0.4991018]
[1749473679875,0.76018024,107740.0,107730.0,0.4991018]
[1749473681277,0.76018024,107740.0,107730.0,0.37859638]
[1749473681474,0.76118024,107740.0,107730.0,0.37859638]
[1749473682482,0.33606024,107740.0,107730.0,0.37859638]
[1749473682781,0.76114024,107740.0,107730.0,0.43049638]
[1749473686578,0.85994024,107740.0,107730.0,0.43049638]
[1749473686777,0.85994024,107740.0,107730.0,0.79129638]
[1749473687581,0.85994024,107740.0,107730.0,0.43049638]
[1749473688079,0.85994024,107740.0,107730.0,0.79129638]
[1749473688785,0.85994024,107740.0,107730.0,0.43049638]
[1749473688786,0.85993974,107740.0,107730.0,0.43049638]
[1749473689286,0.85993974,107740.0,107730.0,0.79129638]
[1749473689480,0.85953974,107740.0,107730.0,0.79129638]
[1749473689673,0.85993974,107740.0,107730.0,0.79129638]
[1749473691188,0.85593974,107740.0,107730.0,0.79129638]
[1749473691487,0.85793974,107740.0,107730.0,0.79129638]
[1749473691786,0.85793974,107740.0,107730.0,0.43049638]
[1749473692400,0.85793974,107740.0,107730.0,0.09283758]
[1749473692401,0.96505274,107740.0,107730.0,0.09283758]
[1749473692686,1.37435274,107740.0,107730.0,0.27839638]
[1749473692887,0.85027274,107740.0,107730.0,0.09283758]
[1749473693093,1.37423274,107740.0,107730.0,0.09283758]
[1749473693586,2.87423274,107740.0,107730.0,0.09283758]
[1749473693785,2.87423274,107740.0,107730.0,0.27839638]
[1749473693987,2.87423274,107740.0,107730.0,0.09283758]
[1749473694183,2.87423274,107740.0,107730.0,0.27839638]
[1749473694384,2.87423274,107740.0,107730.0,0.09283758]
[1749473695183,0.1855588,107730.0,107720.0,0.00013961]
[1749473695388,0.7525718,107730.0,107720.0,0.00013961]
[1749473695686,0.7525718,107730.0,107720.0,0.27853595]
[1749473696784,0.8023718,107730.0,107720.0,0.27853595]
[1749473697390,0.8033718,107730.0,107720.0,0.27853595]
[1749473697888,0.6962588,107730.0,107720.0,0.27853595]
[1749473699288,0.8033718,107730.0,107720.0,0.27853595]
[1749473700492,0.8033718,107730.0,107720.0,0.09295995]
[1749473700693,0.8033718,107730.0,107720.0,0.27853595]
[1749473702589,0.6962588,107730.0,107720.0,0.27853595]
[1749473704996,0.7952588,107730.0,107720.0,0.27853595]
[1749473706898,0.8592988,107730.0,107720.0,0.27853595]
[1749473707195,0.8592988,107730.0,107720.0,0.32863595]
[1749473708192,0.8592988,107730.0,107720.0,0.37523595]
[1749473709700,0.1865588,107730.0,107720.0,0.84314895]
[1749473710001,0.6114788,107730.0,107720.0,0.89074895]
[1749473710298,0.6118788,107730.0,107720.0,0.89074895]
[1749473710504,0.6118788,107730.0,107720.0,0.52994895]
[1749473710690,0.6118788,107730.0,107720.0,0.89074895]
[1749473711496,0.1869588,107730.0,107720.0,0.89074895]
[1749473711693,0.1869588,107730.0,107720.0,1.02991298]
[1749473711694,0.42488,107730.0,107720.0,1.02991298]
[1749473712094,0.42488,107730.0,107720.0,1.31870324]
[1749473712295,0.42528,107730.0,107720.0,1.31870324]
[1749473713105,0.42528,107730.0,107720.0,1.32170324]
[1749473713501,0.42488,107730.0,107720.0,1.32170324]
[1749473714203,0.42528,107730.0,107720.0,1.03291298]
[1749473715501,0.52416,107730.0,107720.0,1.03291298]
[1749473716905,0.7097188,107730.0,107720.0,1.03291298]
[1749473717600,0.52416,107730.0,107720.0,1.03291298]
[1749473719804,0.52416,107730.0,107720.0,1.32170324]
[1749473722310,0.52416,107730.0,107720.0,1.21459024]
[1749473722511,0.52416,107730.0,107720.0,1.32170324]
[1749473724608,0.6946502,107730.0,107720.0,1.32170324]
[1749473726315,0.6946502,107730.0,107720.0,0.96090324]
[1749473728215,0.7095987,107730.0,107720.0,0.67211298]
[1749473730912,0.7095987,107730.0,107720.0,1.03291298]
[1749473732413,0.7095987,107730.0,107720.0,1.32170324]
[1749473734022,0.1859587,107730.0,107720.0,0.85379024]
[1749473734223,0.6106787,107730.0,107720.0,1.32170324]
[1749473734728,0.59560997,107730.0,107720.0,1.32170324]
[1749473735425,0.59560997,107730.0,107720.0,1.33509724]
[1749473738530,0.59560997,107730.0,107720.0,0.97429724]
[1749473739831,0.59560997,107730.0,107720.0,1.33509724]
[1749473742225,0.17088997,107730.0,107720.0,1.33509724]
[1749473742434,0.69436997,107730.0,107720.0,1.33509724]
[1749473742820,0.69436997,107730.0,107720.0,1.04630698]
[1749473745635,0.67930079,107730.0,107720.0,1.33509724]
[1749473748642,0.67930079,107730.0,107720.0,1.37222724]
[1749473749341,1.28107479,107730.0,107720.0,0.42188021]
[1749473749540,1.37627479,107730.0,107720.0,0.42188021]
[1749473749739,2.75576779,107730.0,107720.0,0.13308995]
[1749473749930,2.75576779,107730.0,107720.0,0.31866595]
[1749473751045,2.75576779,107730.0,107720.0,0.32208595]
[1749473751243,2.74242419,107730.0,107720.0,0.28495595]
[1749473753339,2.74242419,107730.0,107720.0,0.09937995]
[1749473753545,2.83525619,107730.0,107720.0,0.09937995]
[1749473753739,2.83525619,107730.0,107720.0,0.07379274]
[1749473754042,2.83525619,107730.0,107720.0,0.07133789]
[1749473754443,2.98915619,107730.0,107720.0,0.07133789]
[1749473754645,2.98915619,107730.0,107720.0,0.06716415]
[1749473756140,3.23915619,107730.0,107720.0,0.06716415]
[1749473756342,1.73915619,107730.0,107720.0,0.06000415]
[1749473756641,0.185576,107720.0,107710.0,0.00013961]
[1749473756842,2.2836665,107720.0,107710.0,0.00013961]
[1749473757041,2.2836665,107720.0,107710.0,0.09296857]
[1749473757542,2.3765065,107720.0,107710.0,0.09296857]
[1749473757848,2.2836665,107720.0,107710.0,0.09296857]
[1749473758340,2.2836665,107720.0,107710.0,0.09596857]
[1749473758544,2.2836665,107720.0,107710.0,0.09896857]
[1749473758740,2.4836699,107720.0,107710.0,0.09896857]
[1749473759144,2.7336699,107720.0,107710.0,0.05160175]
[1749473759339,2.7336699,107720.0,107710.0,1e-08]
[1749473759340,2.8875699,107720.0,107710.0,1e-08]
[1749473759545,2.8875699,107720.0,107710.0,0.09283759]
[1749473759741,2.8875699,107720.0,107710.0,0.06359749]
[1749473759941,2.8635699,107720.0,107710.0,0.06359749]
[1749473760146,0.1855932,107710.0,107700.0,0.0498]
[1749473760342,1.6918566,107710.0,107700.0,0.04942822]
[1749473760541,1.7847046,107710.0,107700.0,0.1422658]
[1749473761138,1.7530114,107710.0,107670.0,0.23635904]
[1749473761450,0.1856449,107680.0,107670.0,0.42511808]
[1749473761750,0.7090849,107680.0,107670.0,0.56767721]
[1749473761950,1.10973354,107680.0,107670.0,0.56767721]
[1749473762450,1.10973354,107680.0,107670.0,0.56867721]
[1749473762844,1.10973354,107680.0,107670.0,0.23362171]
[1749473763050,1.10973354,107680.0,107670.0,0.09396267]
[1749473763051,1.35969694,107680.0,107670.0,0.09396267]
[1749473763452,1.25253354,107680.0,107670.0,0.09496267]
[1749473763750,2.85969694,107680.0,107670.0,0.09496267]
[1749473764452,2.93277144,107680.0,107670.0,0.09496267]
[1749473764950,2.85969694,107680.0,107670.0,0.09496267]
[1749473766353,2.75253354,107680.0,107670.0,0.09496267]
[1749473766554,2.85969694,107680.0,107670.0,0.09496267]
[1749473766950,2.84461822,107680.0,107670.0,0.09496267]
[1749473768054,3.20541822,107680.0,107670.0,0.09496267]
[1749473769758,2.75467367,107680.0,107670.0,0.28062487]
[1749473769958,3.27811367,107680.0,107670.0,0.28062487]
[1749473770149,2.64751027,107680.0,107670.0,0.32772487]
[1749473770355,3.17095027,107680.0,107670.0,0.32772487]
[1749473770860,2.50471027,107680.0,107670.0,0.32772487]
[1749473771064,3.02819027,107680.0,107670.0,0.37712487]
[1749473771255,3.02819027,107680.0,107670.0,0.48428827]
[1749473771557,2.50471027,107680.0,107670.0,0.48428827]
[1749473771763,3.02819027,107680.0,107670.0,0.48428827]
[1749473773558,1.78311027,107680.0,107670.0,0.48428827]
[1749473773857,0.63513482,107680.0,107670.0,0.48428827]
[1749473774057,0.63513482,107680.0,107670.0,0.53348827]
[1749473774566,0.63553482,107680.0,107670.0,0.53348827]
[1749473774768,0.63553482,107680.0,107670.0,0.89428827]
[1749473775260,0.73429482,107680.0,107670.0,0.89428827]
[1749473776968,0.7192187,107680.0,107670.0,0.89428827]
[1749473779468,0.1957387,107680.0,107670.0,0.53348827]
[1749473779672,0.56368864,107680.0,107670.0,0.89428827]
[1749473779972,0.56328864,107680.0,107670.0,0.89428827]
[1749473780173,0.56368864,107680.0,107670.0,0.89428827]
[1749473780376,0.74933354,107680.0,107670.0,0.89428827]
[1749473780573,0.74933354,107680.0,107670.0,0.78712487]
[1749473780777,0.74933354,107680.0,107670.0,0.89428827]
[1749473786875,0.73425741,107680.0,107670.0,0.89428827]
[1749473789277,0.73425741,107680.0,107670.0,0.53348827]
[1749473789477,0.73425741,107680.0,107670.0,0.89428827]
[1749473793385,0.00013961,107690.0,107680.0,0.1856449]
[1749473793574,0.83826867,107690.0,107680.0,0.8551717]
[1749473793779,0.80199031,107690.0,107680.0,0.99468298]
[1749473793979,0.52353961,107690.0,107680.0,0.98038302]
[1749473794179,0.00053961,107690.0,107680.0,0.98038302]
[1749473794479,0.52393961,107690.0,107680.0,0.98038302]
[1749473795777,0.00053961,107690.0,107680.0,1.08754642]
[1749473795982,0.42477961,107690.0,107680.0,1.08754642]
[1749473796183,0.42517961,107690.0,107680.0,1.08754642]
[1749473796375,0.00013961,107690.0,107680.0,1.08754642]
[1749473796685,0.00053961,107690.0,107680.0,1.37633668]
[1749473796979,0.54550023,107700.0,107690.0,0.1856277]
[1749473797183,0.51944,107710.0,107700.0,0.1856104]
[1749473797381,0.94370822,107710.0,107700.0,0.7482738]
[1749473797583,0.09868,107710.0,107700.0,0.98036636]
[1749473797781,0.55962507,107710.0,107700.0,0.98036636]
[1749473799580,0.52332,107710.0,107700.0,0.98036636]
[1749473799780,0.52328,107710.0,107700.0,0.98036636]
[1749473799977,0.52368,107710.0,107700.0,0.98136636]
[1749473800488,0.52368,107710.0,107700.0,0.98336636]
[1749473800784,0.09908,107710.0,107700.0,0.98336636]
[1749473801085,0.52364,107710.0,107700.0,0.98536636]
[1749473801286,0.52364,107710.0,107700.0,1.06083448]
[1749473809792,0.52364,107710.0,107700.0,0.95367108]
[1749473810090,0.52364,107710.0,107700.0,1.06083448]
[1749473810983,0.7092331,107710.0,107700.0,1.06083448]
[1749473811791,0.52364,107710.0,107700.0,1.06083448]
[1749473822101,0.52364,107710.0,107700.0,1.34962474]
[1749473823507,0.0004,107710.0,107700.0,1.34962474]
[1749473823708,0.4248,107710.0,107700.0,1.34962474]
[1749473825203,0.40972963,107710.0,107700.0,1.34962474]
[1749473826305,0.40972963,107710.0,107700.0,1.06083448]
[1749473826705,0.40972963,107710.0,107700.0,1.43614924]
[1749473827110,0.38863143,107710.0,107700.0,1.43614924]
[1749473829608,0.38863143,107710.0,107700.0,1.72482997]
[1749473829815,0.38863143,107710.0,107700.0,1.34951521]
[1749473830010,0.08458174,107720.0,107710.0,0.1855932]
[1749473830318,0.55874174,107720.0,107710.0,1.03573733]
[1749473830614,0.55874174,107720.0,107710.0,1.31660675]
[1749473831015,0.55914174,107720.0,107710.0,1.31660675]
[1749473831222,0.55914174,107720.0,107710.0,1.33196422]
[1749473833225,0.55914174,107720.0,107710.0,1.31857372]
[1749473833823,0.13478174,107720.0,107710.0,1.31857372]
[1749473834026,0.55914174,107720.0,107710.0,1.31857372]
[1749473835225,0.54407215,107720.0,107710.0,1.31857372]
[1749473835418,0.52336,107720.0,107710.0,1.31857372]
[1749473837125,0.0004,107720.0,107710.0,1.31857372]
[1749473837326,0.42472,107720.0,107710.0,1.31857372]
[1749473838531,0.44925844,107720.0,107710.0,1.31857372]
[1749473839630,0.44925844,107720.0,107710.0,1.02989299]
[1749473839831,0.44925844,107720.0,107710.0,1.31843337]
[1749473845224,0.44885844,107720.0,107710.0,1.31843337]
[1749473845432,0.43418862,107720.0,107710.0,1.31843337]
[1749473849133,0.43414862,107720.0,107710.0,1.31843337]
[1749473849639,0.19143961,107730.0,107720.0,0.1855761]
[1749473849938,0.61611961,107730.0,107720.0,0.74860647]
[1749473850328,0.61611961,107730.0,107720.0,0.84144405]
[1749473850935,0.61611961,107730.0,107720.0,1.12998443]
[1749473851233,0.64074124,107730.0,107720.0,1.12998443]
[1749473853241,0.64074124,107730.0,107720.0,1.14337253]
[1749473855040,0.64074124,107730.0,107720.0,1.19127253]
[1749473855339,0.16906124,107730.0,107720.0,1.19127253]
[1749473855542,0.59330124,107730.0,107720.0,1.19127253]
[1749473856240,0.00053961,107730.0,107720.0,1.40277185]
[1749473856438,0.42433134,107740.0,107730.0,0.1855588]
[1749473856640,0.42433134,107740.0,107730.0,0.75927727]
[1749473856839,0.42433134,107740.0,107730.0,0.94599054]
[1749473857242,0.42433134,107740.0,107730.0,1.03881088]
[1749473857742,0.42433134,107740.0,107730.0,1.32735126]
[1749473858639,0.42433134,107740.0,107730.0,1.44786973]
[1749473858838,0.44874199,107740.0,107730.0,1.44986973]
[1749473859037,0.44874199,107740.0,107730.0,1.32935126]
[1749473859234,0.44874199,107740.0,107730.0,1.02639346]
[1749473859439,0.44874199,107740.0,107730.0,1.02739346]
[1749473859941,0.44874199,107740.0,107730.0,1.02639346]
[1749473860142,0.44874199,107740.0,107730.0,1.02739346]
[1749473863045,0.02450199,107740.0,107730.0,1.02739346]
[1749473863246,0.44870199,107740.0,107730.0,1.02739346]
[1749473863941,0.44870199,107740.0,107730.0,1.31593384]
[1749473864549,0.02450199,107740.0,107730.0,1.31593384]
[1749473864848,0.42425134,107740.0,107730.0,1.31593384]
[1749473865350,0.99023961,107750.0,107740.0,0.1855416]
[1749473865541,0.51957961,107750.0,107740.0,0.79424265]
[1749473865846,0.94373961,107750.0,107740.0,0.93330779]
[1749473866049,0.94373961,107750.0,107740.0,1.02611952]
[1749473867348,0.51957961,107750.0,107740.0,1.02611952]
[1749473867548,0.94373961,107750.0,107740.0,1.02611952]
[1749473867949,0.84517961,107750.0,107740.0,1.02711952]
[1749473868143,0.84517961,107750.0,107740.0,1.02811952]
[1749473868747,0.02390682,107750.0,107740.0,1.02811952]
[1749473868948,0.02430682,107750.0,107740.0,1.02811952]
[1749473869148,0.44846682,107750.0,107740.0,1.02811952]
[1749473872448,0.44842682,107750.0,107740.0,1.02811952]
[1749473872644,0.02430682,107750.0,107740.0,1.02811952]
[1749473872850,0.00053961,107750.0,107740.0,1.02811952]
[1749473876554,0.00053961,107750.0,107740.0,1.31607024]
[1749473879253,0.00053961,107750.0,107740.0,1.20896919]
[1749473879553,0.00053961,107750.0,107740.0,1.31607024]
[1749473880053,0.00053961,107750.0,107740.0,1.20896919]
[1749473880259,0.00053961,107750.0,107740.0,1.31607024]
[1749473881062,0.00053961,107750.0,107740.0,0.95527024]
[1749473881264,0.00053961,107750.0,107740.0,1.69022749]
[1749473883963,0.02490524,107750.0,107740.0,1.69022749]
[1749473884464,0.02490524,107750.0,107740.0,1.64562749]
[1749473884655,0.07310524,107750.0,107740.0,1.64562749]
[1749473884966,0.34932964,107750.0,107740.0,1.30887677]
[1749473885164,0.16380524,107750.0,107740.0,1.30887677]
[1749473885757,0.16380524,107750.0,107740.0,1.59682749]
[1749473885958,0.16380524,107750.0,107740.0,1.64202749]
[1749473886167,0.16380524,107750.0,107740.0,1.68672749]
[1749473886361,0.16380524,107750.0,107740.0,1.39877677]
[1749473888569,0.11950524,107750.0,107740.0,1.39877677]
[1749473890671,0.11950524,107750.0,107740.0,1.68672749]
[1749473893372,0.11950524,107750.0,107740.0,1.39877677]
[1749473893572,0.07310524,107750.0,107740.0,1.39877677]
[1749473894572,0.07310524,107750.0,107740.0,1.03797677]
[1749473896377,0.07310524,107750.0,107740.0,1.32624365]
[1749473902066,0.07310524,107750.0,107740.0,1.03797677]
[1749473902274,0.05201392,107750.0,107740.0,1.03797677]
[1749473902484,0.05201392,107750.0,107740.0,1.32632867]
[1749473903578,0.23753832,107750.0,107740.0,1.32632867]
[1749473904076,0.05201392,107750.0,107740.0,1.32632867]
[1749473905375,0.35799662,107750.0,107740.0,1.32632867]
[1749473905571,0.33063832,107750.0,107740.0,1.32632867]
[1749473905780,0.33063832,107750.0,107740.0,1.20587037]
[1749473905979,0.33063832,107750.0,107740.0,1.32632867]
[1749473907276,0.45109662,107750.0,107740.0,0.41941847]
[1749473907576,0.45109662,107750.0,107740.0,0.40081163]
[1749473907978,0.81189662,107750.0,107740.0,0.40081163]
[1749473910989,0.81189662,107750.0,107740.0,0.68916353]
[1749473913588,0.69143832,107750.0,107740.0,0.68916353]
[1749473913790,0.81189662,107750.0,107740.0,0.68916353]
[1749473914191,0.81189662,107750.0,107740.0,0.68816353]
[1749473914397,0.81189662,107750.0,107740.0,0.39981163]
[1749473914696,0.81189662,107750.0,107740.0,0.39881163]
[1749473917495,0.81189662,107750.0,107740.0,0.27835333]
[1749473919191,0.81189662,107750.0,107740.0,0.09281173]
[1749473919392,1.42702462,107750.0,107740.0,0.09281173]
[1749473919899,2.92702462,107750.0,107740.0,0.09281173]
[1749473920293,2.91195549,107750.0,107740.0,0.09281173]
[1749473920493,2.91395549,107750.0,107740.0,0.09281173]
[1749473921199,2.91595549,107750.0,107740.0,0.09281173]
[1749473922794,2.84093599,107750.0,107740.0,0.09281173]
[1749473928396,3.60438399,107750.0,107740.0,0.03212317]
[1749473929201,3.50828399,107750.0,107740.0,0.03212317]
[1749473929798,3.52524216,107750.0,107740.0,0.03212317]
[1749473931600,3.33971776,107750.0,107720.0,0.13700719]
[1749473931808,0.7872754,107730.0,107720.0,0.13700719]
[1749473932105,1.17406638,107730.0,107720.0,0.32258319]
[1749473932303,1.29452468,107730.0,107720.0,0.41539492]
[1749473932507,1.29452468,107730.0,107720.0,0.22981892]
[1749473932701,1.65532468,107730.0,107720.0,0.22981892]
[1749473933007,1.65532468,107730.0,107720.0,0.23081892]
[1749473933306,3.15532468,107730.0,107720.0,0.23081892]
[1749473933807,3.15532468,107730.0,107720.0,0.23181892]
[1749473934008,3.03486638,107730.0,107720.0,0.23181892]
[1749473934202,3.03486638,107730.0,107720.0,0.23081892]
[1749473934405,3.03486638,107730.0,107720.0,0.41739492]
[1749473934907,3.03486638,107730.0,107720.0,0.41639492]
[1749473935701,3.03486638,107730.0,107720.0,0.41539492]
[1749473936504,2.31326638,107730.0,107720.0,0.53585322]
[1749473936808,2.55360808,107730.0,107720.0,0.37039492]
[1749473937008,2.67446638,107730.0,107720.0,0.41579492]
[1749473939008,2.67406638,107730.0,107720.0,0.41579492]
[1749473939207,2.67446638,107730.0,107720.0,0.41579492]
[1749473944113,2.65939545,107730.0,107720.0,0.41579492]
[1749473948814,2.29859545,107730.0,107720.0,0.41579492]
[1749473949212,2.65939545,107730.0,107720.0,0.41579492]
[1749473950218,2.65939545,107730.0,107720.0,0.53625322]
[1749473950911,2.29859545,107730.0,107720.0,0.53625322]
[1749473954315,2.29859545,107730.0,107720.0,0.41579492]
[1749473954515,2.65939545,107730.0,107720.0,0.41579492]
[1749473955821,2.77985375,107730.0,107720.0,0.23021892]
[1749473956016,2.82315375,107730.0,107720.0,0.41579492]
[1749473956915,2.70269545,107730.0,107720.0,0.41579492]
[1749473957121,2.73202433,107730.0,107720.0,0.41579492]
[1749473958020,2.77672433,107730.0,107720.0,0.41579492]
[1749473958518,2.89718263,107730.0,107720.0,0.23021892]
[1749473958717,2.89718263,107730.0,107720.0,0.41579492]
[1749473960122,2.89718263,107730.0,107720.0,0.37039492]
[1749473961126,2.77672433,107730.0,107720.0,0.37039492]
[1749473961621,2.89718263,107730.0,107720.0,0.37039492]
[1749473961821,2.77672433,107730.0,107720.0,0.37039492]
[1749473962023,2.77672433,107730.0,107720.0,0.18481892]
[1749473962223,2.77672433,107730.0,107720.0,0.37039482]
[1749473966933,2.77672433,107730.0,107720.0,0.49085312]
[1749473967134,2.77672433,107730.0,107720.0,0.53475312]
[1749473968023,2.77672433,107730.0,107720.0,0.41429482]
[1749473971230,2.25440433,107730.0,107720.0,0.41429482]
[1749473971432,3.25794263,107730.0,107720.0,0.09301892]
[1749473974229,2.89714263,107730.0,107720.0,0.09301892]
[1749473975735,2.88207099,107730.0,107720.0,0.09301892]
[1749473976038,2.88207099,107730.0,107720.0,0.05270609]
[1749473976240,2.97490299,107730.0,107720.0,0.00732609]
[1749473977331,1.47490299,107730.0,107720.0,0.00732609]
[1749473980138,0.185576,107720.0,107710.0,0.00013961]
[1749473980333,0.1855933,107710.0,107700.0,0.27298492]
[1749473980635,1.3206316,107710.0,107700.0,0.27298492]
[1749473980833,2.8206316,107710.0,107700.0,0.13543555]
[1749473981440,2.8196316,107710.0,107700.0,0.13743555]
[1749473982341,2.8196316,107710.0,107700.0,0.32304605]
[1749473983244,2.8196316,107710.0,107700.0,0.32504605]
[1749473983441,2.8196316,107710.0,107700.0,0.37104605]
[1749473984545,2.89316528,107710.0,107700.0,0.37104605]
[1749473985043,2.89316528,107710.0,107700.0,0.41404605]
[1749473985641,2.80416528,107710.0,107700.0,0.41404605]
[1749473987753,2.80416528,107710.0,107700.0,0.22843555]
[1749473988251,2.84646528,107710.0,107700.0,0.22843555]
[1749473989851,2.89246528,107710.0,107700.0,0.22843555]
[1749473990550,2.87739164,107710.0,107700.0,0.22843555]
[1749473992144,2.83139164,107710.0,107700.0,0.22843555]
[1749473997058,1.33139164,107710.0,107700.0,0.22843555]
[1749473997561,2.83139164,107710.0,107700.0,0.22843555]
[1749473997758,2.83139164,107710.0,107700.0,0.22443555]
[1749473999262,2.87299164,107710.0,107700.0,0.22443555]
[1749474000359,2.87299164,107710.0,107700.0,0.18143555]
[1749474000759,2.85791667,107710.0,107700.0,0.18143555]
[1749474001763,2.85791667,107710.0,107700.0,0.09693555]
[1749474002166,2.85991667,107710.0,107700.0,0.09186282]
[1749474003866,2.85991667,107710.0,107700.0,0.08986282]
[1749474004070,2.86191667,107710.0,107700.0,0.08986282]
[1749474004870,3.28271667,107710.0,107700.0,0.08986282]
[1749474005959,3.25371667,107710.0,107700.0,0.08986282]
[1749474006668,3.25371667,107710.0,107700.0,0.13456282]
[1749474006863,3.25371667,107710.0,107700.0,0.17756282]
[1749474010267,3.00685837,107710.0,107700.0,0.17756282]
[1749474010470,3.00685837,107710.0,107700.0,0.22326282]
[1749474010668,3.12731667,107710.0,107700.0,0.22326282]
[1749474012870,0.98457837,107710.0,107700.0,0.52933162]
[1749474013071,0.98497837,107710.0,107700.0,0.52933162]
[1749474013269,1.62751667,107710.0,107700.0,0.52933162]
[1749474013464,1.62711667,107710.0,107700.0,0.40887332]
[1749474013664,1.62751667,107710.0,107700.0,0.22326282]
[1749474014064,1.62751667,107710.0,107700.0,0.40887332]
[1749474017477,1.61422167,107710.0,107700.0,0.40887332]
[1749474018972,1.59914734,107710.0,107700.0,0.40887332]
[1749474019179,1.59914734,107710.0,107700.0,0.22326282]
[1749474019679,1.59914734,107710.0,107700.0,0.40887332]
[1749474021878,1.49198404,107710.0,107700.0,0.40887332]
[1749474022075,1.59914734,107710.0,107700.0,0.40887332]
[1749474027280,1.95994734,107710.0,107700.0,0.40887332]
[1749474027480,1.95994734,107710.0,107700.0,0.40887322]
[1749474027682,1.95994734,107710.0,107700.0,0.22326282]
[1749474028178,1.95994734,107710.0,107700.0,0.40887322]
[1749474029075,1.94487288,107710.0,107700.0,0.40887322]
[1749474032782,1.94487288,107710.0,107700.0,0.22326282]
[1749474036987,1.94487288,107710.0,107700.0,0.08986282]
[1749474037191,2.07537288,107710.0,107700.0,0.08986282]
[1749474039092,2.0602975,107710.0,107700.0,0.08986282]
[1749474039290,2.19433626,107710.0,107700.0,0.08986282]
[1749474040294,0.1856104,107700.0,107690.0,0.00021108]
[1749474040496,0.1856104,107700.0,107680.0,0.22599701]
[1749474040497,0.1856277,107690.0,107680.0,0.22599701]
[1749474040789,0.1856277,107690.0,107670.0,0.64517696]
[1749474040790,0.1856449,107680.0,107670.0,0.64517696]
[1749474040993,0.66704593,107680.0,107670.0,0.64517696]
[1749474041197,0.66704593,107680.0,107670.0,0.2698622]
[1749474041388,2.16716308,107680.0,107670.0,0.36280292]
[1749474041786,2.16716308,107680.0,107670.0,0.17714072]
[1749474041995,2.16716308,107680.0,107670.0,0.36280292]
[1749474042599,2.16716308,107680.0,107670.0,0.17714072]
[1749474042799,2.16716308,107680.0,107670.0,0.36280282]
[1749474043201,2.15379589,107680.0,107670.0,0.36280282]